bitfinex-derivatives/quotes_ETHF0:USTF0_20251003
["timestamp","ask_amount","ask_price","bid_price","bid_amount"]
[1759469907188,0.4225,4478.1,4478.0,1.1054]
[1759469907997,0.4225,4478.1,4478.0,0.8824]
[1759469908195,0.4225,4478.1,4478.0,1.1054]
[1759469908796,3.2078,4478.2,4478.1,0.7277]
[1759469908996,3.2078,4478.2,4478.1,0.9507]
[1759469909196,3.2078,4478.2,4478.1,0.7277]
[1759469909397,3.9539,4478.2,4478.1,0.5103]
[1759469909695,3.9539,4478.2,4478.1,0.7333]
[1759469910089,3.82806,4478.2,4478.1,0.9507]
[1759469910495,4.35556,4478.2,4478.1,0.9507]
[1759469910890,4.35556,4478.2,4478.1,0.7333]
[1759469916199,3.4264,4478.2,4478.1,0.9399]
[1759469917403,3.2078,4478.2,4478.1,0.9399]
[1759469918604,3.4153,4478.2,4478.1,0.9399]
[1759469918801,3.2078,4478.2,4478.1,0.9399]
[1759469918998,0.2075,4478.6,4478.5,0.8719]
[1759469919798,3.2078,4478.7,4478.6,0.40163]
[1759469920004,3.2078,4478.7,4478.6,1.14283]
[1759469921907,3.12003444,4478.7,4478.6,6.14283]
[1759469922405,3.12003444,4478.7,4478.6,1.14283]
[1759469922794,3.20961704,4479.2,4479.1,1.14278]
[1759469922993,3.20961704,4479.2,4479.1,1.36578]
[1759469923707,3.20961704,4479.2,4479.1,1.59535455]
[1759469923907,0.00181704,4479.2,4479.1,1.59535455]
[1759469934211,0.00181704,4479.2,4479.1,1.36578]
[1759469934915,0.00181704,4479.2,4479.1,1.38348]
[1759469936419,0.00181704,4479.2,4479.1,1.61793348]
[1759469938114,0.00181704,4479.2,4479.1,0.7589]
[1759469938418,0.00181704,4479.2,4479.1,0.2407]
[1759469938419,0.71971704,4479.2,4479.1,0.2407]
[1759469938617,5.71971704,4479.2,4479.1,0.2407]
[1759469939717,5.71971704,4479.2,4479.1,0.0177]
[1759469940027,0.7179,4478.2,4478.1,0.2193753]
[1759469940219,3.9257,4478.2,4478.1,0.2193753]
[1759469940518,3.9257,4478.2,4478.1,0.4423753]
[1759469940721,3.9257,4478.2,4478.1,0.223]
[1759469941112,3.9257,4478.2,4478.1,0.5554]
[1759469941312,1.11962,4477.6,4477.5,0.3284]
[1759469941524,1.11962,4477.6,4477.0,0.3329]
[1759469941525,0.4144,4477.1,4477.0,0.3329]
[1759469941722,0.4144,4477.1,4477.0,0.5559]
[1759469941921,0.4144,4477.1,4477.0,1.091]
[1759469942921,0.4144,4477.1,4477.0,0.868]
[1759469943124,0.4144,4477.1,4477.0,1.091]
[1759469943419,3.6222,4477.1,4477.0,0.868]
[1759469943609,3.6222,4477.1,4477.0,1.091]
[1759469944121,3.6222,4477.1,4477.0,0.868]
[1759469944315,3.6222,4477.1,4477.0,1.091]
[1759469946516,3.6222,4477.1,4477.0,0.868]
[1759469947218,3.6222,4477.1,4477.0,1.091]
[1759469947724,3.6222,4477.1,4477.0,0.868]
[1759469947920,3.6222,4477.1,4477.0,1.091]
[1759469948427,3.4153,4477.1,4477.0,1.091]
[1759469949225,3.2078,4477.1,4477.0,1.091]
[1759469949434,3.4237,4477.7,4477.6,0.7514]
[1759469949618,3.4237,4477.7,4477.6,0.9744]
[1759469950329,3.2078,4477.7,4477.6,0.9744]
[1759469950518,3.4237,4477.7,4477.6,0.9744]
[1759469950717,3.2078,4477.7,4477.6,0.9744]
[1759469950922,3.2078,4478.2,4478.0,0.1258]
[1759469951123,3.4237,4478.2,4478.1,0.9744]
[1759469952122,3.2078,4478.2,4478.1,1.37607]
[1759469956527,3.2078,4478.7,4478.1,0.9744]
[1759469956833,3.2078,4478.7,4478.6,1.15303]
[1759469957534,3.2078,4478.7,4478.6,1.37603]
[1759469957735,0.2159,4478.8,4478.7,0.82451]
[1759469958327,0.2159,4478.8,4478.7,1.15301]
[1759469958834,3.20961704,4479.2,4478.6,0.223]
[1759469958835,0.2159,4479.1,4479.0,0.8772]
[1759469959429,3.20961704,4479.2,4479.1,0.40158]
[1759469959736,3.20961704,4479.2,4479.1,1.37598]
[1759469959737,3.42551704,4479.2,4479.1,1.37598]
[1759469960939,3.42551704,4479.2,4479.1,0.9744]
[1759469961136,3.94841704,4479.2,4479.1,0.9744]
[1759469961634,3.94841704,4479.2,4479.1,0.7681]
[1759469962030,3.94841704,4479.2,4479.1,0.3285]
[1759469962234,3.94841704,4479.2,4479.1,0.5515]
[1759469962430,3.94841704,4479.2,4479.1,0.3285]
[1759469962730,3.94841704,4479.2,4479.1,0.5515]
[1759469962930,3.94841704,4479.2,4478.9,0.3285]
[1759469962931,0.4298,4479.0,4478.9,0.3285]
[1759469963131,0.7388,4479.0,4478.9,0.5515]
[1759469964831,0.7388,4479.0,4478.9,0.7681]
[1759469965035,0.7388,4479.0,4478.9,0.9744]
[1759469966535,3.20961704,4479.2,4478.9,0.9744]
[1759469966841,3.20961704,4479.2,4479.1,0.7394]
[1759469967531,3.42401704,4479.2,4479.1,0.7394]
[1759469968436,3.63131704,4479.2,4479.1,0.9624]
[1759469968643,3.94041704,4479.2,4479.1,0.9624]
[1759469969034,3.63131704,4479.2,4479.1,0.9624]
[1759469969544,3.20961704,4479.2,4479.1,0.9624]
[1759469971037,3.42401704,4479.2,4479.1,0.9624]
[1759469973447,3.63131704,4479.2,4479.1,0.9624]
[1759469973948,3.94041704,4479.2,4479.1,0.9624]
[1759469974852,3.63131704,4479.2,4479.1,0.9624]
[1759469976950,0.4322,4479.0,4478.9,0.3288]
[1759469977151,0.7413,4478.7,4478.6,0.5335]
[1759469977355,0.7413,4478.7,4478.6,0.7565]
[1759469979148,0.4322,4478.4,4478.3,0.3288]
[1759469979350,0.7413,4478.4,4478.3,0.5518]
[1759469979740,0.2146,4478.5,4478.4,0.742]
[1759469979944,0.4322,4478.5,4478.4,0.742]
[1759469981853,0.4322,4478.5,4478.4,0.965]
[1759469982956,0.2146,4478.5,4478.4,0.965]
[1759469984057,3.2078,4478.7,4478.6,0.742]
[1759469985260,3.4224,4478.7,4478.6,0.742]
[1759469985664,3.2078,4478.7,4478.6,0.742]
[1759469987964,3.20961704,4479.2,4479.0,0.1289]
[1759469988165,3.42421704,4479.2,4479.1,0.965]
[1759469989271,3.42421704,4479.2,4479.1,1.36658]
[1759469994972,3.64181704,4479.2,4479.1,1.36658]
[1759469999571,3.95091704,4479.2,4479.1,1.36658]
[1759470000273,0.4322,4478.7,4478.6,2.00405619]
[1759470000468,0.7413,4478.7,4478.6,2.76055619]
[1759470000976,0.7413,4478.7,4478.6,2.53755619]
[1759470001172,0.7413,4478.7,4478.5,1.60242619]
[1759470001381,0.4322,4478.4,4478.3,0.21786187]
[1759470001678,0.3065,4478.3,4478.1,1.60242619]
[1759470001876,0.7278,4478.3,4478.2,0.223]
[1759470002377,0.7278,4478.3,4478.2,0.765845]
[1759470005379,0.7278,4478.3,4478.2,0.5486]
[1759470005874,0.7278,4478.3,4478.2,0.3256]
[1759470006079,0.7278,4478.3,4478.2,0.75962275]
[1759470007174,0.7278,4478.3,4478.2,0.5486]
[1759470007879,0.7278,4478.3,4478.2,0.76615405]
[1759470008080,0.7278,4478.3,4478.2,0.223]
[1759470009370,0.7278,4478.3,4478.2,0.5486]
[1759470009571,0.7278,4478.3,4478.2,0.7694]
[1759470011282,0.4213,4478.3,4478.2,0.9815]
[1759470011481,0.7278,4478.3,4478.2,0.9815]
[1759470012185,0.4213,4478.3,4478.2,0.9815]
[1759470014486,0.203,4478.3,4478.2,0.9815]
[1759470014788,3.4108,4478.7,4478.6,0.7585]
[1759470015086,3.2078,4478.7,4478.6,0.9815]
[1759470017885,3.4108,4478.7,4478.6,0.9815]
[1759470019086,3.9356,4478.7,4478.6,0.9815]
[1759470019286,3.9356,4478.7,4478.6,0.7694]
[1759470019488,3.9356,4478.7,4478.6,0.223]
[1759470020189,3.9356,4478.7,4478.6,0.5486]
[1759470020389,3.9356,4478.7,4478.6,0.7694]
[1759470021991,3.9356,4478.7,4478.6,0.5464]
[1759470022292,3.9356,4478.7,4478.6,0.7694]
[1759470022792,3.6291,4478.7,4478.6,0.9815]
[1759470023187,3.4108,4478.7,4478.6,0.9815]
[1759470024591,3.6291,4478.7,4478.6,0.9815]
[1759470024991,3.9382,4478.7,4478.6,0.9815]
[1759470026984,3.9382,4478.7,4478.6,0.7694]
[1759470028196,3.4108,4478.7,4478.6,0.9871]
[1759470028389,3.2078,4478.7,4478.6,0.9871]
[1759470030990,3.637,4478.7,4478.6,0.9871]
[1759470031196,3.9461,4478.7,4478.6,2.58952619]
[1759470032495,3.637,4478.7,4478.6,2.58952619]
[1759470033092,3.637,4478.7,4478.6,0.9871]
[1759470033998,3.637,4478.7,4478.6,2.58952619]
[1759470036100,3.637,4478.7,4478.6,0.9871]
[1759470039101,3.637,4478.7,4478.6,2.58952619]
[1759470040599,0.3094,4479.1,4478.6,0.7663]
[1759470040805,0.7295,4479.1,4479.0,0.8605]
[1759470040997,0.4201,4479.1,4479.0,1.0835]
[1759470041402,0.4201,4479.1,4479.0,1.48509]
[1759470042405,0.00181704,4479.2,4479.1,0.7364]
[1759470045304,0.21341704,4479.2,4479.1,0.7364]
[1759470046808,0.73131704,4479.2,4479.1,0.5303]
[1759470049310,0.73131704,4479.2,4479.1,0.7533]
[1759470050308,0.73131704,4479.2,4479.1,0.9594]
[1759470051315,0.42191704,4479.2,4479.1,0.9594]
[1759470052507,0.42191704,4479.2,4479.1,0.7364]
[1759470052802,0.42191704,4479.2,4479.1,0.9594]
[1759470053815,0.73131704,4479.2,4479.1,0.5303]
[1759470054003,0.73131704,4479.2,4479.1,0.7533]
[1759470054209,0.73131704,4479.2,4479.1,0.5303]
[1759470054504,0.73131704,4479.2,4479.1,0.7533]
[1759470055306,0.73131704,4479.2,4479.1,0.5303]
[1759470055506,0.73131704,4479.2,4479.1,0.7533]
[1759470058813,0.73131704,4479.2,4479.1,0.3134]
[1759470059015,0.73131704,4479.2,4479.1,0.5364]
[1759470059708,0.73131704,4479.2,4479.1,0.7533]
[1759470066819,0.73131704,4479.2,4479.1,0.9694]
[1759470067722,0.42191704,4479.2,4479.1,0.9694]
[1759470068517,0.73091704,4479.2,4479.1,0.9694]
[1759470073027,0.73091704,4479.2,4479.1,0.5364]
[1759470074920,0.73091704,4479.2,4479.1,0.3134]
[1759470075120,0.73091704,4479.2,4479.1,0.5364]
[1759470076627,0.73091704,4479.2,4479.1,0.7517]
[1759470079031,0.73091704,4479.2,4479.1,0.9678]
[1759470082840,0.73091704,4479.2,4479.1,0.7448]
[1759470083041,0.73091704,4479.2,4479.1,0.9678]
[1759470084643,0.737,4478.7,4478.6,0.321]
[1759470084836,0.2193,4478.1,4478.0,1.9481197]
[1759470085038,0.737,4478.1,4478.0,0.5657]
[1759470085542,0.737,4478.1,4478.0,0.8671]
[1759470085841,0.737,4478.1,4478.0,0.6441]
[1759470086036,0.7234,4477.8,4477.7,0.3014]
[1759470086334,0.7234,4477.8,4477.7,0.5244]
[1759470086841,0.7234,4477.8,4477.7,0.9484]
[1759470087739,0.4147,4477.8,4477.7,0.9484]
[1759470089841,0.7234,4477.8,4477.7,0.9484]
[1759470091035,0.2018,4477.8,4477.7,0.9484]
[1759470091237,3.91816,4478.2,4477.8,0.3014]
[1759470091436,4.11996,4478.2,4478.1,0.5186]
[1759470091636,3.9312,4478.2,4478.1,0.7416]
[1759470094240,3.9312,4478.2,4478.1,0.5244]
[1759470094639,3.9312,4478.2,4478.1,0.223]
[1759470096932,3.9312,4478.2,4478.1,0.5287]
[1759470097242,3.9312,4478.2,4478.1,0.223]
[1759470097946,3.9312,4478.2,4475.0,0.001]
[1759470097947,0.7374,4477.1,4477.0,0.8639]
[1759470098148,3.6383,4477.1,4477.0,1.0861]
[1759470098543,3.9452,4477.1,4477.0,1.0861]
[1759470100543,3.9452,4477.1,4477.0,0.5087]
[1759470100749,3.9452,4477.1,4477.0,0.5287]
[1759470101251,3.9452,4477.1,4477.0,0.3057]
[1759470101546,3.9452,4477.1,4477.0,0.5287]
[1759470102647,3.9452,4477.1,4477.0,0.3057]
[1759470102850,3.9452,4477.1,4477.0,0.5287]
[1759470103748,3.9452,4477.1,4477.0,0.3057]
[1759470103948,3.9452,4477.1,4477.0,0.223]
[1759470104147,3.9452,4477.1,4477.0,0.5287]
[1759470104842,3.9452,4477.1,4477.0,0.8639]
[1759470105350,3.2078,4477.1,4477.0,1.0861]
[1759470105546,3.2078,4477.6,4477.2,0.40174]
[1759470105851,3.2078,4477.6,4477.5,0.8631]
[1759470107653,3.6383,4477.6,4477.5,0.8631]
[1759470107955,3.6383,4477.6,4477.5,1.0861]
[1759470108651,3.6383,4477.6,4477.5,0.8631]
[1759470109048,3.9452,4477.6,4477.5,1.0861]
[1759470109748,3.6383,4477.6,4477.5,1.0861]
[1759470111255,0.7374,4477.1,4477.0,0.3057]
[1759470111556,3.9452,4477.1,4477.0,0.5287]
[1759470112052,3.9452,4477.1,4477.0,0.3057]
[1759470112352,3.9452,4477.1,4477.0,0.223]
[1759470113453,3.9452,4477.1,4476.8,0.00198014]
[1759470113657,0.7374,4477.0,4476.9,0.5287]
[1759470113851,0.7374,4477.0,4476.9,0.7317]
[1759470114251,0.4305,4477.0,4476.9,0.9539]
[1759470114461,0.216,4477.0,4476.9,0.9539]
[1759470115150,0.7374,4477.0,4476.9,0.9539]
[1759470115461,0.7374,4477.0,4476.9,0.5287]
[1759470115661,0.7374,4477.0,4476.9,0.7317]
[1759470116360,0.4305,4477.0,4476.9,0.3057]
[1759470116561,0.7374,4477.0,4476.9,0.5087]
[1759470118565,0.4305,4477.0,4476.9,0.7309]
[1759470119358,0.7374,4477.0,4476.9,0.7309]
[1759470119558,3.4238,4477.1,4477.0,0.8631]
[1759470119960,3.2078,4477.1,4477.0,0.8631]
[1759470124763,3.5169,4477.7,4477.0,0.8631]
[1759470124963,0.4375,4477.6,4477.5,0.8667]
[1759470125173,0.4375,4477.6,4477.5,1.0897]
[1759470126768,0.7466,4477.6,4477.5,1.0897]
[1759470135075,0.7466,4477.6,4477.0,0.1322]
[1759470135373,0.7466,4477.6,4477.5,0.223]
[1759470135563,3.9544,4477.6,4477.5,0.223]
[1759470136162,3.9544,4477.6,4477.5,0.5422]
[1759470136366,4.35612,4477.6,4477.5,0.5422]
[1759470136973,4.35612,4477.6,4477.5,0.223]
[1759470137474,4.35612,4477.6,4476.9,0.3192]
[1759470137475,0.7466,4477.0,4476.9,0.3192]
[1759470137673,3.9544,4477.0,4476.9,0.5422]
[1759470139273,3.9544,4477.0,4476.9,0.3192]
[1759470139473,3.9544,4477.0,4476.9,0.5422]
[1759470140477,3.9544,4477.0,4476.9,0.759]
[1759470141077,3.9544,4477.0,4476.9,0.536]
[1759470141274,3.9544,4477.0,4476.8,0.00198014]
[1759470141479,3.9544,4477.0,4476.9,0.223]
[1759470141778,3.9544,4477.0,4476.9,0.5422]
[1759470143487,1.14838,4476.9,4476.8,0.00198014]
[1759470143672,1.14838,4476.9,4476.8,0.22498014]
[1759470144771,1.14838,4476.9,4476.8,0.54418014]
[1759470146376,0.7466,4476.9,4476.8,0.22498014]
[1759470146676,0.7466,4476.9,4476.8,0.54128014]
[1759470149885,0.7466,4476.9,4476.8,0.74688014]
[1759470150384,0.7466,4476.9,4476.8,0.54128014]
[1759470151383,0.7466,4476.9,4476.8,0.22498014]
[1759470153485,0.7466,4476.9,4476.8,0.00198014]
[1759470153785,0.7466,4476.9,4476.8,0.22498014]
[1759470153978,0.7466,4476.9,4476.8,0.54698014]
[1759470154178,0.7466,4476.9,4476.8,0.74888014]
[1759470155087,0.7466,4476.9,4476.8,0.32398014]
[1759470155984,0.7466,4476.9,4476.8,0.00198014]
[1759470157888,1.23974372,4476.9,4476.8,0.00198014]
[1759470158384,0.7466,4476.9,4476.8,0.00198014]
[1759470160586,0.7466,4476.9,4476.4,0.01692213]
[1759470160587,1.21621,4476.5,4476.4,0.01692213]
[1759470160885,4.42401,4476.5,4476.4,0.01692213]
[1759470161489,4.42401,4476.5,4476.4,0.01981538]
[1759470163391,3.4132,4476.5,4476.4,0.75741538]
[1759470163583,3.6334,4476.5,4476.4,0.75741538]
[1759470163981,3.9425,4476.5,4476.4,0.75741538]
[1759470164289,3.9425,4476.5,4476.4,0.34181538]
[1759470164490,3.9425,4476.5,4476.4,0.54371538]
[1759470165889,3.9425,4476.5,4476.4,0.75741538]
[1759470167095,3.6334,4476.5,4476.4,0.75741538]
[1759470168296,3.9425,4476.5,4476.4,0.75741538]
[1759470168593,3.9425,4476.5,4476.4,0.34181538]
[1759470170192,3.9425,4476.5,4476.4,0.01981538]
[1759470170691,3.9425,4476.5,4476.4,0.34181538]
[1759470174796,3.9425,4476.5,4476.4,0.75741538]
[1759470176387,3.2078,4476.5,4476.4,0.75741538]
[1759470177796,3.2078,4477.0,4476.5,0.40181]
[1759470177997,3.2078,4477.0,4476.9,0.7376]
[1759470178204,3.2078,4477.0,4476.9,0.9616]
[1759470181403,3.4132,4477.0,4476.9,0.9616]
[1759470181806,3.14013053,4477.0,4476.9,0.9616]
[1759470182007,0.22203495,4478.6,4477.4,0.7552]
[1759470182008,3.6232,4477.5,4477.4,0.7552]
[1759470182300,3.9323,4477.5,4477.4,0.7552]
[1759470182507,3.9323,4477.5,4477.4,0.9792]
[1759470183712,3.9323,4477.5,4477.4,0.5561]
[1759470183907,4.0204,4477.5,4477.0,0.3321]
[1759470184107,0.4154,4476.8,4476.7,0.5491]
[1759470184411,0.7245,4476.8,4476.7,0.7731]
[1759470184907,0.7245,4476.8,4476.7,1.1749]
[1759470186709,0.7245,4476.8,4476.7,0.5561]
[1759470188110,0.7245,4476.8,4476.7,0.7731]
[1759470188812,0.7245,4476.5,4476.4,0.01981538]
[1759470189011,0.8287,4476.5,4476.4,0.01981538]
[1759470189515,0.7245,4476.5,4476.4,0.01981538]
[1759470190111,0.4154,4476.5,4476.4,0.77501538]
[1759470191914,0.2092,4476.5,4476.4,0.77501538]
[1759470192608,0.7245,4476.5,4476.4,0.77501538]
[1759470194310,4.33408,4476.9,4476.8,0.3321]
[1759470194509,4.33408,4476.9,4476.6,0.3321]
[1759470194717,0.8172,4476.7,4476.6,0.3321]
[1759470195019,1.1263,4476.7,4476.4,0.35191538]
[1759470195215,1.1263,4476.7,4476.4,0.57591538]
[1759470195411,0.2092,4476.5,4476.4,0.24381538]
[1759470195609,0.4154,4476.5,4476.4,0.56891538]
[1759470195912,0.3091,4476.8,4476.5,0.4551]
[1759470196117,0.2092,4476.6,4476.5,0.8782]
[1759470197509,3.2078,4476.9,4476.8,0.4231]
[1759470197710,3.417,4476.9,4476.8,0.7552]
[1759470197906,3.417,4476.9,4476.8,0.3321]
[1759470197907,3.9323,4476.9,4476.8,0.3321]
[1759470198112,0.8042,4476.5,4476.4,0.01981538]
[1759470198317,1.51696288,4476.5,4476.4,0.01981538]
[1759470198517,1.21326288,4476.5,4476.4,0.35191538]
[1759470198715,1.21326288,4476.5,4476.4,0.01981538]
[1759470198914,1.21326288,4476.5,4476.4,0.35191538]
[1759470199110,1.21326288,4476.5,4476.4,0.01981538]
[1759470199412,1.29296288,4476.5,4476.4,0.01981538]
[1759470201220,0.8042,4476.5,4476.4,0.01981538]
[1759470203116,0.7245,4476.5,4476.4,0.01981538]
[1759470204120,0.7245,4476.5,4476.4,0.35191538]
[1759470204422,0.7245,4476.5,4476.4,0.01981538]
[1759470206122,0.7245,4476.5,4476.4,0.33221538]
[1759470206323,0.7245,4476.5,4476.4,0.01981538]
[1759470207123,1.29209164,4476.5,4476.4,0.01981538]
[1759470208014,1.21279164,4476.5,4476.4,0.33221538]
[1759470208215,1.21279164,4476.5,4476.4,0.01981538]
[1759470208419,1.29209164,4476.5,4476.4,0.01981538]
[1759470209922,6.29209164,4476.5,4476.4,0.01981538]
[1759470212418,1.21279164,4476.5,4476.4,0.35111538]
[1759470212625,1.21279164,4476.5,4476.4,0.56151538]
[1759470212917,1.21279164,4476.5,4476.4,0.76741538]
[1759470213121,1.21279164,4476.5,4476.4,0.56151538]
[1759470219029,0.48829164,4476.5,4476.4,0.76741538]
[1759470219226,0.4018,4476.6,4476.5,0.5406]
[1759470219421,1.11501335,4476.6,4476.5,0.8719]
[1759470222525,1.11501335,4476.6,4475.5,0.47266251]
[1759470222526,0.94079,4475.6,4475.5,0.47266251]
[1759470222728,3.9494,4475.6,4475.5,0.88896251]
[1759470223028,3.7467,4475.6,4475.5,0.88896251]
[1759470223429,3.2078,4475.6,4475.5,6.41516251]
[1759470223632,3.52703665,4475.6,4475.5,6.23866238]
[1759470224528,3.52703665,4475.6,4475.5,6.56996238]
[1759470224832,3.21043665,4475.6,4475.5,6.56996238]
[1759470226529,3.2078,4476.2,4475.6,0.40189]
[1759470226724,3.2078,4476.2,4476.1,0.7476]
[1759470227229,3.7467,4476.2,4476.1,0.7476]
[1759470227534,3.74877785,4476.2,4476.1,0.9706]
[1759470228127,3.20987785,4476.2,4476.1,5.9706]
[1759470231031,0.00207785,4476.2,4476.1,5.9706]
[1759470231337,0.00207785,4476.2,4476.1,7.57535164]
[1759470232438,3.2078,4476.8,4476.7,0.7476]
[1759470232639,3.2078,4476.8,4476.7,0.9706]
[1759470233432,3.52707076,4476.8,4476.7,0.9706]
[1759470233639,3.74937076,4476.8,4476.7,1.3724]
[1759470234030,3.74937076,4476.8,4476.7,0.7476]
[1759470234235,3.95207076,4476.8,4476.7,0.9706]
[1759470234928,3.95207076,4476.8,4476.7,0.7476]
[1759470235134,0.7416,4476.3,4476.2,0.2104]
[1759470235335,0.7416,4476.3,4475.9,0.3313]
[1759470235336,0.871,4476.0,4475.9,0.7476]
[1759470235531,0.871,4476.0,4475.9,0.9706]
[1759470235739,0.3166,4476.2,4476.1,0.2059]
[1759470235940,0.5389,4476.2,4476.1,0.7476]
[1759470237242,0.3166,4476.2,4476.1,0.7476]
[1759470237445,0.1294,4476.5,4476.1,0.7476]
[1759470237644,0.2223,4476.3,4476.0,0.51905]
[1759470237845,0.5389,4476.3,4476.2,0.4163]
[1759470238343,0.5389,4476.3,4476.2,0.7476]
[1759470238846,0.3166,4476.7,4476.2,0.81813]
[1759470239144,3.95207076,4476.8,4476.7,0.5417]
[1759470239340,3.95207076,4476.8,4476.7,0.4334]
[1759470240650,3.74937076,4476.8,4476.7,0.9706]
[1759470240845,3.95207076,4476.8,4476.7,0.9706]
[1759470241050,3.95207076,4476.8,4476.7,0.6393]
[1759470241850,3.95207076,4476.8,4476.4,0.3313]
[1759470242052,3.95207076,4476.8,4476.4,0.2056]
[1759470242053,0.8501,4476.5,4476.4,0.2056]
[1759470242249,0.8501,4476.5,4476.4,0.4286]
[1759470242455,0.8501,4476.5,4476.4,0.7465]
[1759470242650,0.8501,4476.5,4476.4,0.964]
[1759470243555,0.3062,4476.7,4476.6,0.2056]
[1759470243759,3.21047076,4476.8,4476.7,0.3179]
[1759470243958,3.42317076,4476.8,4476.7,0.741]
[1759470244262,3.42317076,4476.8,4476.7,0.2056]
[1759470244263,3.93327076,4476.8,4476.7,0.2056]
[1759470249166,0.8501,4476.5,4476.4,0.7465]
[1759470250168,0.8501,4476.5,4476.4,0.223]
[1759470250665,0.8501,4476.5,4476.4,0.4286]
[1759470255868,0.8501,4476.5,4476.1,0.40185]
[1759470256172,0.8501,4476.0,4475.9,2.34575164]
[1759470256373,0.8501,4476.0,4475.9,2.56875164]
[1759470257173,0.8501,4476.0,4475.9,0.964]
[1759470257876,0.7228,4476.0,4475.9,0.964]
[1759470259968,0.8501,4476.0,4475.9,0.6461]
[1759470260170,0.8501,4476.0,4475.9,0.4231]
[1759470260369,0.8501,4476.0,4475.9,0.964]
[1759470260875,0.8501,4476.0,4475.9,0.741]
[1759470261077,0.8501,4476.0,4475.9,0.964]
[1759470261374,0.8501,4476.0,4475.9,0.741]
[1759470261579,0.8501,4476.0,4475.9,0.964]
[1759470261873,0.8501,4476.0,4475.9,0.741]
[1759470262177,0.8501,4476.0,4475.9,0.964]
[1759470263163,0.8501,4476.0,4475.9,0.6461]
[1759470263365,0.8501,4476.0,4475.9,0.4286]
[1759470266474,0.8501,4476.0,4475.9,0.7575]
[1759470268985,0.8501,4476.0,4475.9,0.969]
[1759470270781,0.8501,4476.0,4475.9,0.4286]
[1759470270980,0.8501,4476.0,4475.9,0.223]
[1759470271681,0.3146,4475.9,4475.7,1.60687181]
[1759470271879,0.7466,4475.9,4475.8,0.223]
[1759470272280,0.432,4475.9,4475.8,0.223]
[1759470272480,0.7466,4475.9,4475.8,0.223]
[1759470274876,0.432,4475.6,4475.5,0.47506238]
[1759470275070,0.7466,4475.6,4475.5,0.69806238]
[1759470276377,0.7466,4475.6,4475.5,0.47506238]
[1759470276582,0.7466,4475.6,4475.5,0.69806238]
[1759470279182,0.7466,4475.6,4475.5,1.10966238]
[1759470279384,0.7466,4475.6,4475.5,1.41916238]
[1759470279685,0.7466,4475.6,4475.5,1.10966238]
[1759470280685,0.7466,4475.6,4475.5,1.41916238]
[1759470281477,3.2078,4475.8,4475.5,1.54316238]
[1759470281780,3.7383,4475.8,4475.7,0.7211]
[1759470287691,0.5305,4475.8,4475.7,0.7211]
[1759470293094,3.2078,4476.4,4475.7,0.7211]
[1759470293291,3.6398,4476.4,4476.3,0.2074]
[1759470293493,3.6398,4476.4,4476.3,0.4304]
[1759470293690,3.6398,4476.4,4476.3,0.223]
[1759470293888,3.9544,4476.4,4476.3,0.223]
[1759470296193,3.9544,4476.4,4476.3,0.62483]
[1759470296791,3.9544,4476.4,4476.3,0.223]
[1759470296986,3.9544,4476.4,4476.3,0.4304]
[1759470297186,3.9544,4476.4,4476.3,0.6346]
[1759470297386,3.9544,4476.4,4476.3,0.4304]
[1759470299194,3.9544,4476.4,4476.3,0.223]
[1759470300486,0.3146,4476.3,4476.0,0.40186]
[1759470300692,0.7466,4476.1,4476.0,0.40186]
[1759470300993,0.7466,4476.1,4476.0,0.83226]
[1759470301701,0.7466,4476.1,4476.0,0.60926]
[1759470301996,0.7466,4476.1,4476.0,1.15646]
[1759470302396,0.7466,4476.1,4476.0,0.83226]
[1759470303197,0.4562,4476.0,4475.8,1.60687181]
[1759470303400,0.3235,4475.8,4475.7,1.60687181]
[1759470303602,0.7509,4475.8,4475.7,1.82987181]
[1759470303791,0.7509,4475.8,4475.7,1.60687181]
[1759470303994,0.7509,4475.8,4475.7,1.82987181]
[1759470304193,0.7509,4475.8,4475.7,2.23175181]
[1759470304600,0.4274,4475.8,4475.6,1.60687181]
[1759470304801,0.3235,4475.7,4475.5,2.08193419]
[1759470304999,0.7509,4475.7,4475.6,0.223]
[1759470306192,0.4274,4475.7,4475.5,2.08193419]
[1759470306399,0.5341,4475.6,4475.5,2.08193419]
[1759470306602,0.7509,4475.6,4475.5,2.30493419]
[1759470307899,0.7509,4475.6,4475.5,0.69806238]
[1759470308304,0.7509,4475.6,4475.5,2.08193419]
[1759470308494,0.7509,4475.6,4475.5,2.30493419]
[1759470309201,0.7509,4475.6,4475.5,2.50843419]
[1759470311308,0.7509,4475.6,4475.5,0.90156238]
[1759470313009,0.7509,4475.6,4475.5,1.22576238]
[1759470313815,0.7509,4475.6,4475.5,0.67856238]
[1759470314114,0.7509,4475.6,4475.5,0.90156238]
[1759470314805,0.7509,4475.6,4475.5,0.67856238]
[1759470315112,0.7509,4475.6,4475.5,0.90156238]
[1759470315312,0.7509,4475.6,4475.5,0.69806238]
[1759470315508,0.7509,4475.6,4475.5,0.47506238]
[1759470315707,0.7509,4475.6,4475.5,0.69806238]
[1759470317408,0.7509,4475.6,4475.5,0.90156238]
[1759470317611,0.7509,4475.6,4475.5,1.22576238]
[1759470318615,0.7509,4475.6,4475.5,1.43376238]
[1759470321217,3.2078,4475.9,4475.5,1.43376238]
[1759470321218,3.7419,4475.9,4475.8,1.13758]
[1759470321408,0.5341,4475.9,4475.8,1.36058]
[1759470321613,0.5341,4476.2,4476.1,1.13754]
[1759470321815,0.5341,4476.2,4476.1,1.36054]
[1759470326620,0.7509,4476.2,4476.1,1.36054]
[1759470328616,0.7509,4476.2,4476.1,1.13754]
[1759470328816,0.7509,4476.2,4476.1,1.36054]
[1759470329322,0.7509,4476.2,4476.1,0.9587]